[Event "Summer Prague Open-A 2022"]
[Site "Prague"]
[Date "2022.08.09"]
[Round "6.17"]
[White "Krivanek, Vladimir"]
[Black "Hrabusa, Matej"]
[Result "0-1"]
[ECO "B20"]
[WhiteElo "2152"]
[BlackElo "2354"]
[Annotator "TA"]
[PlyCount "70"]
[EventDate "2022.08.05"]
[EventType "swiss"]
[EventCountry "CZE"]
[SourceTitle "playchess.com"]
[Source "ChessBase"]
[SourceQuality "1"]
[TimeControl "40/5400+30:1800+30"]

{[%evp 9,69,-9,-8,-13,-5,-3,18,14,28,23,25,25,25,-17,-12,-111,-116,-117,-110,-125,-114,-185,-168,-171,-159,-204,-110,-187,-170,-183,-176,-156,-108,-192,-174,-210,-136,-208,-193,-215,-165,-257,-264,-339,-410,-417,-404,-410,-365,-540,-516,-711,-666,-1441,-1381,-1321,-1295,-29986,-29987,-29986,-29986,-29999]} 1. e4 {[%emt 0:00:11]} c5 {[%emt 0:00:29]} 2. a3 {[%emt 0:00:21]} g6 {[%emt 0:02:11]} 3. Bc4 {[%emt 0:00:53]} Nc6 {[%emt 0:01:21]} 4. Nc3 {[%emt 0:00:47]} Bg7 {[%emt 0:01:16]} 5. d3 {[%emt 0:02:05]} e6 {[%emt 0:02:42]} 6. Ba2 {[%emt 0:00:58] B20: Sicilian: Unusual White 2nd moves.} Nge7 {[%emt 0:00:44]} 7. h4 {[%emt 0:03:03][%cal Bh2h4,Bh4h5][%mdl 32]} h6 {[%emt 0:07:09]} 8. h5 $1 {[%emt 0:06:30] The position is equal.} g5 {[%emt 0:00:10]} 9. f4 $1 {[%emt 0:02:35]} gxf4 {[%emt 0:01:16]} 10. Bxf4 {[%emt 0:01:15]} d5 {[%emt 0:04:29] [#]} 11. Qd2 $146 {[%emt 0:11:54]} ({Predecessor:} 11. Nf3 e5 12. Bg3 Be6 13. Bh4 Qd7 14. O-O Rg8 15. Qd2 f5 16. exd5 Nxd5 17. Rae1 Nxc3 18. Bxe6 Qxe6 19. Qxc3 {1-0 (50) Cornette,M (2558)-Priasmoro,N (2502) Chess.com INT 2021}) 11... d4 {[%emt 0:06:11]} 12. Na4 {[%emt 0:07:02]} (12. Nce2 $11 {remains equal.}) 12... e5 $1 $17 {[%emt 0:05:48]} 13. Bg3 {[%emt 0:06:43]} (13. Nxc5 $2 exf4 14. Qxf4 O-O $19) 13... Qd6 {[%emt 0:02:09] ...b5 is the strong threat.} 14. b4 {[%emt 0:04:40]} cxb4 {[%emt 0:02:00]} 15. Nb2 {[%emt 0:00:12]} (15. axb4 $17 b5 16. Nb6 (16. Nc5 $2 a5 $19) 16... axb6 17. Bxf7+ Kxf7 18. Rxa8) 15... bxa3 $19 {[%emt 0:03:37]} 16. Nc4 {[%emt 0:00:18]} Qc5 {[%emt 0:04:12]} 17. Nxa3 {[%emt 0:05:56]} f5 {[%emt 0:06:51]} (17... O-O $19 {aiming for ...Kh7.} 18. Nf3 b5) 18. Ne2 {[%emt 0:15:27]} Bf6 {[%emt 0:04:03]} (18... Qxa3 19. Bf7+ $1 {[%mdl 512]} Kxf7 20. Rxa3 $18) (18... f4 19. Bf2 $17) 19. O-O {[%emt 0:07:04][%cal Og3f2]} Bg5 {[%emt 0:01:40]} (19... Qxa3 20. Bf7+ $1 {[%mdl 512]} Kxf7 21. Rxa3 $18) 20. Qd1 {[%emt 0:01:06][%cal Oc2c3]} Bd7 {[%emt 0:04:24]} (20... f4 $142 21. Bf2 f3 22. gxf3 Bh3) 21. Qb1 {[%emt 0:06:15] [#]} O-O-O $1 {[%emt 0:03:14] Hoping for ...f4.} (21... Be3+ 22. Kh1 $17) 22. Qb2 {[%emt 0:01:44]} fxe4 {[%emt 0:03:46]} 23. Rfb1 {[%emt 0:01:59]} ({Don't blunder} 23. Rf7 $2 Rdf8 24. Bh2 (24. Rg7 $2 b6 $19) (24. Raf1 $2 Rxf7 25. Rxf7 Nd8 $19) 24... Rxf7 25. Bxf7 Rf8 $19) (23. dxe4 $17 {might work better.} Rhf8 24. Rfb1) 23... b6 {[%emt 0:00:47]} 24. Bc4 {[%emt 0:02:38]} Rdf8 {[%emt 0:01:35]} 25. Nb5 {[%emt 0:00:37]} (25. Qb5 $142) 25... a5 {[%emt 0:02:30] Strongly threatening ...exd3.} 26. Nd6+ {[%emt 0:00:50]} Qxd6 {[%emt 0:04:05]} 27. Qxb6 {[%emt 0:00:07][%cal Rc4a6]} Qc7 {[%emt 0:01:09]} 28. Qa6+ {[%emt 0:02:04]} Kd8 {[%emt 0:00:17]} 29. Qa8+ {[%emt 0:05:35]} (29. dxe4 $142 Bc8 30. Qb5) 29... Bc8 {[%emt 0:01:59]} 30. Rb5 {[%emt 0:01:39]} Be3+ {[%emt 0:01:51]} 31. Kh2 {[%emt 0:00:16]} Rf5 {[%emt 0:01:06]} 32. Bh4 {[%emt 0:01:13]} Rxh5 {[%emt 0:01:47]} 33. g3 {[%emt 0:00:19] [#]} Rxh4+ $1 {[%emt 0:01:59] Black mates.} 34. gxh4 {[%emt 0:00:10]} Qd7 {[%emt 0:00:13][%csl Gc8][%cal Rd7h3]} 35. Raxa5 {[%emt 0:00:37]} Qh3# {Weighted Error Value: White=0.69/Black=0.09 (flawless)} 0-1

[Event "Summer Prague Open-A 2022"]
[Site "Prague"]
[Date "2022.08.09"]
[Round "6.18"]
[White "Guz, Ari"]
[Black "Soural, Jan"]
[Result "1-0"]
[ECO "A45"]
[WhiteElo "2331"]
[BlackElo "2119"]
[Annotator "TA"]
[PlyCount "89"]
[EventDate "2022.08.05"]
[EventType "swiss"]
[EventCountry "CZE"]
[SourceTitle "playchess.com"]
[Source "ChessBase"]
[SourceQuality "1"]
[TimeControl "40/5400+30:1800+30"]

{[%evp 9,88,0,0,-4,31,14,11,11,20,14,72,24,23,24,24,24,57,11,54,49,83,78,74,80,87,67,80,89,97,100,102,93,75,53,81,88,89,81,94,72,75,62,130,70,62,68,66,52,43,30,50,52,45,50,70,9,12,-244,107,104,104,41,91,91,118,106,305,297,289,286,369,354,524,514,514,539,29986,881,29995,29996,29999]} 1. d4 {[%emt 0:00:18]} Nf6 {[%emt 0:00:10]} 2. Nc3 {[%emt 0:00:11]} d5 {[%emt 0:00:38]} 3. Bf4 {[%emt 0:00:09]} e6 {[%emt 0:07:33]} 4. Nb5 {[%emt 0:00:27]} Na6 {[%emt 0:00:28]} 5. e3 {[%emt 0:00:16]} c6 {[%emt 0:06:58]} 6. Nc3 {[%emt 0:00:07][%cal Bb5c3,Bc3e2,Be2d4][%mdl 32] D00: 1 d4 d5: Unusual lines.} Bd6 {[%emt 0:02:39]} 7. Nf3 {[%emt 0:08:36]} Bxf4 {[%emt 0:02:37]} 8. exf4 {[%emt 0:00:03] The position is equal.} Qa5 {[%emt 0:04:20] [#]} 9. Qd2 $146 {[%emt 0:04:55]} ({Predecessor:} 9. Bd3 c5 10. O-O O-O 11. a3 cxd4 12. Nb5 Qb6 13. b4 Bd7 14. Nbxd4 Rac8 15. Re1 {1-0 (40) Alekseenko,K (2575)-Miezis,N (2430) Riga 2017}) 9... b5 {[%emt 0:05:46] [#]} (9... O-O $11 {keeps the balance.}) 10. Bd3 {[%emt 0:04:54]} (10. Ne4 $1 $16 Qxd2+ 11. Nexd2) 10... b4 $11 {[%emt 0:06:56]} 11. Ne2 {[%emt 0:00:18]} c5 {[%emt 0:01:43]} 12. dxc5 {[%emt 0:02:07] aiming for c6.} Nxc5 {[%emt 0:03:34]} 13. O-O {[%emt 0:00:10]} (13. a3 $14) 13... Nxd3 {[%emt 0:03:35]} 14. cxd3 {[%emt 0:01:54]} O-O {[%emt 0:02:57]} 15. a3 {[%emt 0:04:37]} Rb8 {[%emt 0:00:47]} 16. Ned4 {[%emt 0:00:53] Hoping for Nc6.} Bd7 {[%emt 0:02:42] Prevents Nc6.} 17. b3 {[%emt 0:02:40]} Rfc8 {[%emt 0:08:50]} 18. axb4 {[%emt 0:00:42]} Qxb4 {[%emt 0:05:03]} 19. Qxb4 {[%emt 0:04:33]} ({Much weaker is} 19. Rxa7 Qxd2 20. Nxd2 Rc3 $11) 19... Rxb4 {[%emt 0:00:06]} 20. Rxa7 {[%emt 0:00:06]} h6 {[%emt 0:00:39]} 21. g4 {[%emt 0:02:57]} g5 {[%emt 0:01:23]} 22. fxg5 {[%emt 0:01:04]} hxg5 {[%emt 0:00:07]} 23. h3 {[%emt 0:09:51]} Be8 {[%emt 0:23:48]} 24. Re1 {[%emt 0:02:44]} Nd7 {[%emt 0:00:10]} 25. Kg2 {[%emt 0:02:49] White is more active.} Rc3 {[%emt 0:02:02]} (25... Nf8 $14) 26. Nxe6 {[%emt 0:08:46]} fxe6 $14 {[%emt 0:00:06]} 27. Rxe6 {[%emt 0:00:04]} Kf8 {[%emt 0:02:01]} 28. Nxg5 {[%emt 0:03:17]} Rxd3 {[%emt 0:01:15]} 29. f3 {[%emt 0:00:47]} Rbxb3 {[%emt 0:01:45]} 30. h4 {[%emt 0:00:12]} Re3 {[%emt 0:00:32]} 31. Rd6 {[%emt 0:00:48][%csl LRd5,LRd7][%mdl 1024] White has compensation.} Ne5 {[%emt 0:03:56]} 32. Rf6+ {[%emt 0:08:20]} (32. h5 $14 Kg8 33. Ra8 Nxg4 34. Kg3 (34. fxg4 Rb2+ 35. Kf1 d4 $11)) 32... Kg8 $11 {[%emt 0:00:35]} 33. Ne6 $2 {[%emt 0:01:15][%mdl 8192]} (33. h5 $11 {and White stays safe.} Nxg4 34. fxg4 Rb2+ 35. Rf2) 33... Bf7 $2 {[%emt 0:00:34]} (33... Nd7 $19 34. Rxd7 Bxd7) 34. Ra8+ $16 {[%emt 0:01:15]} Kh7 {[%emt 0:00:01] [#] ...Re2+ is the strong threat.} 35. Ng5+ $1 {[%emt 0:00:24]} Kg7 {[%emt 0:00:01] [#]} 36. Rxf7+ {[%emt 0:00:12]} Nxf7 {[%emt 0:00:23]} 37. Ra7 {[%emt 0:00:02]} d4 $2 {[%emt 0:00:57]} 38. Rxf7+ $18 {[%emt 0:00:06][%mdl 4096] Endgame KRR-KRN} Kg8 {[%emt 0:00:45]} 39. Rd7 {[%emt 0:00:24]} d3 {[%emt 0:00:40]} 40. h5 {[%emt 0:00:56] Black must now prevent h6.} Re2+ {[%emt 0:00:48]} (40... Rb6 {was called for.} 41. Ne4 d2 42. Nxd2 Ra6 43. Rd8+ Kf7) 41. Kg3 {[%emt 0:30:07] Intending h6 and mate.} Rb5 {[%emt 0:17:47]} 42. Ne4 {[%emt 0:00:00]} Rb3 {[%emt 0:01:52]} 43. h6 {[%emt 0:00:00]} (43. Nf6+ $142 Kf8 44. h6 d2 45. h7 Rxf3+ 46. Kxf3 Rh2 47. Nh5 d1=Q+ 48. Rxd1) 43... Kh8 {[%emt 0:01:30]} 44. Nf6 {[%emt 0:00:00][%csl Gf6][%cal Rd7h7]} Rb8 {[%emt 0:00:19]} 45. Rh7# {[%emt 0:00:00] Weighted Error Value: White=0.27 (precise) /Black=0.74} 1-0

[Event "Summer Prague Open-A 2022"]
[Site "Prague"]
[Date "2022.08.09"]
[Round "6.19"]
[White "Santagati, Alessandro"]
[Black "Saypuri Srithan"]
[Result "1-0"]
[ECO "C42"]
[WhiteElo "2299"]
[BlackElo "1923"]
[Annotator "TA"]
[PlyCount "75"]
[EventDate "2022.08.05"]
[EventType "swiss"]
[EventCountry "CZE"]
[SourceTitle "playchess.com"]
[Source "ChessBase"]
[SourceQuality "1"]
[TimeControl "40/5400+30:1800+30"]

{[%evp 15,75,25,25,22,22,20,36,39,41,37,69,69,76,66,66,70,75,72,77,73,89,74,79,58,108,106,106,83,70,59,95,97,89,86,138,87,85,68,85,65,69,74,61,74,73,76,69,89,189,189,186,183,295,256,228,239,1470,549,535,518,493,414]} 1. e4 {[%emt 0:00:04]} e5 {[%emt 0:00:25]} 2. Nf3 {[%emt 0:00:07]} Nf6 {[%emt 0:00:06]} 3. Nxe5 {[%emt 0:00:05]} d6 {[%emt 0:00:11]} 4. Nf3 {[%emt 0:00:08]} Nxe4 {[%emt 0:00:04]} 5. Nc3 {[%emt 0:00:04]} Nxc3 {[%emt 0:00:10]} 6. dxc3 {[%emt 0:00:06]} Be7 {[%emt 0:00:07]} 7. Be3 {[%emt 0:00:05]} Nc6 {[%emt 0:00:08]} 8. Qd2 {[%emt 0:00:09]} Be6 {[%emt 0:00:03] 8...Bf5 is more advanced technology.} 9. O-O-O {[%emt 0:00:10] C42: Petroff Defence: 3 Nxe5 and unusual White 3rd moves.} Qd7 {[%emt 0:00:04]} (9... Bxa2 $2 10. b3 $18) 10. Kb1 {[%emt 0:00:19]} a6 {[%emt 0:00:05]} 11. h4 {[%emt 0:00:08] White is slightly better.} Bf6 {[%emt 0:02:35]} 12. Ng5 {[%emt 0:02:22]} Bxg5 {[%emt 0:00:18]} 13. hxg5 {[%emt 0:00:44]} O-O-O {[%emt 0:00:08]} 14. Be2 {[%emt 0:09:40] [#]} Rde8 $146 {[%emt 0:12:34]} ({Predecessor:} 14... Kb8 15. Rh4 Bf5 16. Rdh1 Rhe8 17. Bd3 Bg6 18. Bxg6 hxg6 19. Rh7 Rg8 20. b3 d5 {½-½ (30) Smirnov,T (2354)-Timofeev,A (2595) Sochi 2019}) 15. Rh4 {[%emt 0:06:18]} f6 {[%emt 0:27:09]} 16. gxf6 {[%emt 0:04:01]} gxf6 {[%emt 0:00:04]} 17. Rdh1 {[%emt 0:03:35]} Ne5 {[%emt 0:03:21]} 18. b3 {[%emt 0:07:51]} Bf5 {[%emt 0:12:10]} 19. Qd5 {[%emt 0:21:15]} c5 {[%emt 0:22:56]} ({Black should play} 19... Rhg8 $14) 20. Rd1 $16 {[%emt 0:06:04]} Rd8 {[%emt 0:02:44]} 21. Ra4 {[%emt 0:11:58]} Be6 {[%emt 0:02:55]} 22. Qe4 {[%emt 0:00:24] [#] And now Bxc5 would win.} f5 {[%emt 0:03:28]} 23. Qf4 {[%emt 0:01:59] aiming for Bxc5.} Qc6 {[%emt 0:00:51]} 24. Qh6 {[%emt 0:02:26]} Bd5 {[%emt 0:03:27]} (24... Bf7 $142) 25. f3 {[%emt 0:05:35]} ({Better is} 25. Rf4) 25... Ng6 {[%emt 0:01:04]} 26. Qg5 {[%emt 0:05:25]} Be6 {[%emt 0:01:01]} 27. Qf6 {[%emt 0:00:14]} Rhe8 {[%emt 0:00:32]} 28. Bd3 {[%emt 0:01:24] White is more active.} Rd7 {[%emt 0:00:44]} 29. Bf2 {[%emt 0:02:33]} Rf7 {[%emt 0:01:20]} 30. Qg5 {[%emt 0:00:15]} b5 {[%emt 0:01:45]} 31. Ra5 {[%emt 0:00:40]} c4 {[%emt 0:00:46]} (31... Ne5 $16) 32. bxc4 $18 {[%emt 0:03:50]} Ne5 {[%emt 0:01:30]} 33. cxb5 {[%emt 0:00:45]} axb5 {[%emt 0:01:05]} (33... Rb7 $142 34. Qf4 (34. Bxf5 Rxb5+ 35. Rxb5 Qxb5+ 36. Kc1 Nc4 $16) 34... Nxd3 35. Rxd3 Rxb5+ 36. Rxb5 Qxb5+ 37. Kc1 Rd8) 34. Bxb5 {[%emt 0:02:28] Dancing on a razor blade. A strong pair of Bishops.} Rb7 {[%emt 0:00:04]} 35. a4 {[%emt 0:01:58]} ({Avoid the trap} 35. Ra8+ $2 Kc7 36. Rxe8 (36. Qg7+ $2 Bd7 $19) 36... Qxb5+ 37. Kc1 Qxe8 $19) 35... Ree7 $2 {[%emt 0:00:53] [#]} (35... Qxc3 36. Ra8+ Rb8 37. Rxb8+ Kxb8) 36. Qxe7 {[%emt 0:01:45]} Rxe7 {[%emt 0:00:17]} 37. Bxc6 {[%emt 0:00:06]} Nxc6 {[%emt 0:00:02]} 38. Ra6 {[%emt 0:00:39] Weighted Error Value: White=0.21 (precise) /Black=0.16 (very precise)} 1-0

[Event "Summer Prague Open-A 2022"]
[Site "Prague"]
[Date "2022.08.09"]
[Round "6.20"]
[White "Hajiyev, Kanan"]
[Black "Parligras, Cosmin"]
[Result "1/2-1/2"]
[ECO "D19"]
[WhiteElo "2142"]
[BlackElo "2277"]
[Annotator "RC"]
[PlyCount "22"]
[EventDate "2022.08.05"]
[EventType "swiss"]
[EventCountry "CZE"]
[SourceTitle "playchess.com"]
[Source "ChessBase"]
[SourceQuality "1"]
[TimeControl "40/5400+30:1800+30"]

1. d4 {[%emt 0:00:03]} d5 {[%emt 0:04:01]} 2. c4 {[%emt 0:01:31]} c6 {[%emt 0:00:07]} 3. Nf3 {[%emt 0:01:37]} Nf6 {[%emt 0:00:08]} 4. Nc3 {[%emt 0:00:51]} dxc4 {[%emt 0:00:10]} 5. a4 {[%emt 0:00:43]} Bf5 {[%emt 0:00:17]} 6. e3 {[%emt 0:00:57]} e6 {[%emt 0:00:15]} 7. Bxc4 {[%emt 0:00:03]} Bb4 {[%emt 0:00:15]} 8. O-O {[%emt 0:01:11]} O-O {[%emt 0:00:21]} 9. Qe2 {[%emt 0:06:56]} Bg6 {[%emt 0:00:13]} 10. Ne5 {[%emt 0:02:44]} Nbd7 {[%emt 0:00:08]} 11. Nxg6 {[%emt 0:02:07]} hxg6 {[%emt 0:00:08]} 1/2-1/2

[Event "Summer Prague Open-A 2022"]
[Site "Prague"]
[Date "2022.08.09"]
[Round "6.21"]
[White "Nemeth, Zalan"]
[Black "Schletter, Felix"]
[Result "1-0"]
[ECO "A34"]
[WhiteElo "2194"]
[BlackElo "1975"]
[Annotator "TA"]
[PlyCount "73"]
[EventDate "2022.08.05"]
[EventType "swiss"]
[EventCountry "CZE"]
[SourceTitle "playchess.com"]
[Source "ChessBase"]
[SourceQuality "1"]
[TimeControl "40/5400+30:1800+30"]

{[%evp 11,73,14,14,25,8,7,32,19,84,85,98,91,102,101,105,100,89,115,136,108,97,94,96,80,127,111,141,146,134,141,148,129,315,310,323,328,310,317,494,492,511,460,798,647,623,502,512,445,599,378,379,366,631,610,725,706,651,493,487,322,322,322,624,600]} 1. c4 {[%emt 0:00:01]} c5 {[%emt 0:00:10]} 2. g3 {[%emt 0:00:04]} Nf6 {[%emt 0:00:07]} 3. Bg2 {[%emt 0:00:03]} d5 {[%emt 0:00:06]} 4. cxd5 {[%emt 0:00:03]} Nxd5 {[%emt 0:00:05]} 5. Nc3 {[%emt 0:00:02]} Nc7 {[%emt 0:00:10]} 6. Qa4+ {[%emt 0:00:03]} Bd7 {[%emt 0:04:14]} 7. Qb3 {[%emt 0:01:21] A34: Symmetrical English: 2 Nc3, lines with ...d5.} Nc6 {[%emt 0:01:02]} 8. Qxb7 {[%emt 0:00:05]} Nd4 {[%emt 0:05:09]} 9. Qe4 {[%emt 0:00:29] Against Nc2+. White is slightly better.} f6 {[%emt 0:07:17] [#]} (9... g6 $1 $11 {keeps the balance.}) 10. Qb1 $1 $16 {[%emt 0:05:54]} Rb8 {[%emt 0:03:45]} 11. e3 {[%emt 0:03:08]} Nc6 {[%emt 0:02:00]} 12. Nge2 {[%emt 0:02:08]} e5 {[%emt 0:04:54]} 13. O-O {[%emt 0:02:41]} Be7 {[%emt 0:00:57] [#]} 14. Rd1 $146 {[%emt 0:11:58]} ({Predecessor:} 14. d4 cxd4 15. exd4 Nxd4 16. Rd1 Bc5 17. Nxd4 Bxd4 18. Ne2 Ne6 19. Bd5 Ba4 20. Bxe6 Bxd1 21. Nxd4 Qxd4 {1-0 (26) Docx,S (2419)-Strohhaeker,R (2367) Germany 2015}) 14... Ne6 {[%emt 0:03:02] Prevents d4.} 15. Nd5 {[%emt 0:11:18]} O-O {[%emt 0:03:15]} 16. b3 {[%emt 0:07:31]} Bd6 {[%emt 0:13:42]} 17. d3 {[%emt 0:06:50]} Ne7 {[%emt 0:06:07]} (17... Ng5 $142) 18. Ba3 {[%emt 0:08:05]} Bb5 {[%emt 0:05:31]} 19. Nec3 {[%emt 0:01:17]} Be8 {[%emt 0:00:09]} 20. Qc2 {[%emt 0:03:06]} f5 {[%emt 0:04:46]} 21. f4 {[%emt 0:02:47] White is more active.} g5 $2 {[%emt 0:04:47] This move loses the game for Black.} (21... exf4 $16 22. Nxe7+ (22. gxf4 Ng6 $16) (22. Nxf4 Nxf4 23. gxf4 Qa5 $16) (22. exf4 Nd4 $16) 22... Bxe7) 22. fxe5 $18 {[%emt 0:03:35]} Bxe5 {[%emt 0:00:09]} 23. d4 {[%emt 0:01:28]} Bg7 {[%emt 0:01:56]} 24. dxc5 {[%emt 0:02:45]} Nxd5 {[%emt 0:00:37]} (24... Nc6 $142 25. Rac1 Qa5) 25. Bxd5 {[%emt 0:01:14]} (25. Rxd5 Qe7 26. Rf1 Nc7 $18) 25... Qc8 {[%emt 0:01:41]} 26. Rac1 {[%emt 0:00:59]} f4 {[%emt 0:01:05]} (26... Bc6 $142 27. Qg2 Bxd5 28. Nxd5 Rf7) 27. exf4 {[%emt 0:01:34]} gxf4 {[%emt 0:00:08]} 28. Qe4 {[%emt 0:01:38]} Bf7 {[%emt 0:00:20]} 29. Bxe6 {[%emt 0:05:48]} Bxe6 {[%emt 0:00:18]} 30. Rd6 {[%emt 0:01:34]} Bh3 {[%emt 0:01:10]} 31. Nd5 {[%emt 0:01:11]} Qg4 $2 {[%emt 0:01:35]} (31... f3 32. Nf4 Qg4) 32. Nxf4 {[%emt 0:01:01]} Rbe8 {[%emt 0:01:59]} 33. Qc4+ {[%emt 0:00:57]} Kh8 {[%emt 0:00:06]} 34. Nxh3 {[%emt 0:01:13]} Qxh3 {[%emt 0:00:12]} 35. Rd2 {[%emt 0:01:08] [#] Prevents Rf2. c6 is the strong threat.} Re3 {[%emt 0:01:02][%cal Oe3g3]} 36. Rg2 {[%emt 0:01:10]} Ref3 $2 {[%emt 0:00:24]} (36... Qf5 37. c6 Re4 38. Bxf8 Rxc4 39. Bxg7+ (39. bxc4 $2 {loses.} Bxf8 40. Re1 Bc5+ 41. Kh1 Qc8 $19) (39. Rxc4 Qb1+ 40. Kf2 Qxa2+ 41. Kf1 Qb1+ 42. Ke2 Qb2+ 43. Kf1 Qb1+ 44. Ke2 Qb2+ 45. Kf1 Qb1+ $11) 39... Kxg7 40. bxc4 (40. Rxc4 Qb1+ 41. Kf2 Qxa2+ 42. Kg1 Qb1+ 43. Kf2 Qb2+ 44. Ke3 Qxg2 $11) 40... Qe5) 37. c6 {[%emt 0:03:32] Weighted Error Value: White=0.34/Black=0.47} 1-0

[Event "Summer Prague Open-A 2022"]
[Site "Prague"]
[Date "2022.08.09"]
[Round "6.22"]
[White "Salem Eid, Ahmed"]
[Black "Bruchmann, Stephan"]
[Result "1/2-1/2"]
[ECO "B06"]
[WhiteElo "2165"]
[BlackElo "2226"]
[Annotator "TA"]
[PlyCount "107"]
[EventDate "2022.08.05"]
[EventType "swiss"]
[EventCountry "CZE"]
[SourceTitle "playchess.com"]
[Source "ChessBase"]
[SourceQuality "1"]
[TimeControl "40/5400+30:1800+30"]

{[%evp 13,107,0,0,0,2,-52,-54,-31,0,0,0,0,0,-25,-25,-74,-35,-42,-26,-44,-10,-26,0,-63,10,8,52,60,48,47,44,-10,52,40,43,0,0,0,5,-5,0,0,0,0,38,6,64,10,39,0,0,0,0,0,0,0,0,0,8,8,8,0,-8,-56,8,8,8,8,8,8,35,0,0,0,0,0,0,0,0,0,0,0,0,0,0,0,0,0,0,-8,0,0,-8,-8,0,-8]} 1. e4 {[%emt 0:01:53]} g6 {[%emt 0:02:01]} 2. d4 {[%emt 0:00:12]} Bg7 {[%emt 0:00:10]} 3. Nc3 {[%emt 0:00:13]} c6 {[%emt 0:00:07]} 4. Be3 {[%emt 0:02:16]} d5 {[%emt 0:03:38]} 5. f3 {[%emt 0:00:47]} Qb6 {[%emt 0:01:54]} 6. Qd2 {[%emt 0:12:13]} Qxb2 {[%emt 0:02:03]} 7. Rb1 {[%emt 0:00:41]} Qa3 {[%emt 0:00:10]} 8. exd5 {[%emt 0:02:25] B15: Caro-Kann: 3 Nc3: 3...g6 and 3...dxe4 4 Nxe4 Nf6 5 Nxf6+ exf6.} Nf6 {[%emt 0:00:06]} 9. Bc4 {[%emt 0:09:58]} (9. dxc6 $11 Nxc6 10. Bc4) 9... O-O $15 {[%emt 0:08:16]} 10. Nge2 {[%emt 0:12:06] Black is slightly better.} Nbd7 {[%emt 0:11:30]} 11. dxc6 {[%emt 0:02:02]} bxc6 {[%emt 0:00:09]} 12. O-O {[%emt 0:02:36]} Nb6 {[%emt 0:01:19]} 13. Bb3 {[%emt 0:06:23]} Ba6 {[%emt 0:05:15]} 14. Bh6 {[%emt 0:09:10]} (14. Bf2 $11) 14... Rad8 {[%emt 0:17:38] Threatens to win with ...c5.} 15. Bxg7 {[%emt 0:00:38]} Kxg7 {[%emt 0:00:07] [#]} 16. Qg5 $146 {[%emt 0:06:09] Prevents c5.} ({Predecessor:} 16. Ne4 Bxe2 17. Qxe2 Rxd4 18. Qe3 Rdd8 19. Qc3 Rc8 20. Qc5 Qxc5+ 21. Nxc5 Rfd8 22. Rfe1 {0-1 (37) Vanka,M (2189)-Haba,Z (2252) Ricany 2010}) 16... Nbd5 {[%emt 0:05:35] [#] Hoping for ...Nxc3.} 17. Rfd1 {[%emt 0:04:58]} Qa5 {[%emt 0:02:37][%cal Oc6c5]} 18. Qd2 {[%emt 0:10:00]} (18. Qe5 $11) 18... Qc7 {[%emt 0:08:01]} (18... Rfe8 $15) 19. Na4 {[%emt 0:04:27]} Rfe8 {[%emt 0:06:49]} 20. c4 {[%emt 0:02:37]} Nb6 {[%emt 0:01:36]} 21. Qa5 {[%emt 0:02:20]} Bc8 {[%emt 0:00:07]} 22. Bc2 {[%emt 0:03:22]} ({Better is} 22. Nb2 $14) 22... Na8 {[%emt 0:04:00]} (22... e5 $1 $11) 23. Qxc7 $14 {[%emt 0:01:57]} Nxc7 {[%emt 0:00:09]} 24. Be4 {[%emt 0:00:02]} Nxe4 {[%emt 0:01:17]} 25. fxe4 {[%emt 0:00:02]} Bg4 {[%emt 0:00:02]} 26. Nac3 {[%emt 0:01:12]} Rb8 {[%emt 0:05:38]} 27. h3 {[%emt 0:00:38]} Bxe2 {[%emt 0:01:30]} 28. Nxe2 {[%emt 0:00:09]} f5 {[%emt 0:00:51]} 29. e5 {[%emt 0:00:52]} e6 {[%emt 0:00:15]} (29... Rb6 $11) 30. Nc3 {[%emt 0:00:30]} (30. Rb3 $14) 30... Red8 {[%emt 0:00:58]} 31. Rxb8 {[%emt 0:01:50]} (31. Kf2 {is interesting.} g5 32. g4 Kf7 33. Rxb8 Rxb8 34. d5) 31... Rxb8 {[%emt 0:00:08]} 32. Rb1 {[%emt 0:00:01]} Rxb1+ {[%emt 0:03:39]} 33. Nxb1 $11 {[%emt 0:00:01][%mdl 4096] Endgame KN-KN} g5 {[%emt 0:00:23]} 34. Nd2 {[%emt 0:02:12]} Kg6 {[%emt 0:00:28]} (34... Na6 $5 {[%cal Ra6b4]}) 35. Nb3 {[%emt 0:00:35]} f4 {[%emt 0:01:32]} 36. Na5 {[%emt 0:00:30]} c5 {[%emt 0:00:10]} 37. dxc5 {[%emt 0:00:27]} Kf5 {[%emt 0:00:10]} 38. Nc6 {[%emt 0:00:05]} (38. Kf2 $11) 38... a6 {[%emt 0:00:25]} (38... Na6 $15) 39. Kf2 {[%emt 0:00:40][%cal Oh3h4]} Ke4 {[%emt 0:00:18]} 40. Ke2 {[%emt 0:00:29]} h5 {[%emt 0:00:39]} 41. a4 {[%emt 0:30:46]} g4 {[%emt 0:36:02]} 42. hxg4 {[%emt 0:00:00]} hxg4 {[%emt 0:00:00] The position is equal.} 43. a5 {[%emt 0:00:00]} f3+ {[%emt 0:00:00]} 44. gxf3+ {[%emt 0:00:00]} gxf3+ {[%emt 0:00:00]} 45. Kf2 {[%emt 0:00:00]} Kd3 {[%emt 0:00:00]} 46. Kxf3 {[%emt 0:00:00]} Kxc4 {[%emt 0:00:00]} 47. Ke4 {[%emt 0:00:00]} Kxc5 {[%emt 0:00:00]} 48. Nd8 {[%emt 0:00:00]} Kc4 {[%emt 0:00:00]} 49. Nb7 {[%emt 0:00:00]} Kc3 {[%emt 0:00:00]} 50. Nd8 {[%emt 0:00:00]} Kc4 {[%emt 0:00:00]} 51. Nb7 {[%emt 0:00:00]} Nd5 {[%emt 0:00:00]} 52. Nd6+ {[%emt 0:00:00]} Kc5 {[%emt 0:00:00]} 53. Nb7+ {[%emt 0:00:00]} Kc4 {[%emt 0:00:11]} 54. Nd6+ {[%emt 0:00:00] Weighted Error Value: White=0.17 (very precise) /Black=0.17 (very precise)} 1/2-1/2